[Event "Open Nuevo Centro. Jornada 2"]
[Site "Chess.com"]
[Date "2020.06.26"]
[Round "1"]
[White "Martínez Carvajal, Juan Francisco"]
[Black "Rabbani Perez, Oumaima "]
[Result "1-0"]
[WhiteElo "1769"]
[BlackElo "734"]
[TimeControl "180+2"]
[EndTime "10:35:28 PDT"]
[Termination "Victoria de JuanFcoMtnezCarvajal por jaque mate"]

1. Nf3 {[%clk 0:03:01.2]} 1... Nf6 {[%clk 0:02:59.9]} 2. c4 {[%clk 0:03:01.3]}
2... c5 {[%clk 0:02:59.1]} 3. g3 {[%clk 0:03:01.9]} 3... g6 {[%clk 0:02:57.3]}
4. Bg2 {[%clk 0:03:01.9]} 4... Bg7 {[%clk 0:02:56.8]} 5. Nc3 {[%clk 0:03:02.9]}
5... Nc6 {[%clk 0:02:55.9]} 6. O-O {[%clk 0:02:59.2]} 6... O-O {[%clk
0:02:55.5]} 7. d4 {[%clk 0:02:59.6]} 7... d5 {[%clk 0:02:55.3]} 8. cxd5 {[%clk
0:02:59]} 8... cxd4 {[%clk 0:02:55.3]} 9. Nxd4 {[%clk 0:02:38]} 9... Nxd5 {[%clk
0:02:55]} 10. Nxc6 {[%clk 0:02:33.6]} 10... Nxc3 {[%clk 0:02:54.1]} 11. Qxd8
{[%clk 0:02:30.9]} 11... Rxd8 {[%clk 0:02:53]} 12. Nxd8 {[%clk 0:02:32]} 12...
Nxe2+ {[%clk 0:02:48.6]} 13. Kh1 {[%clk 0:02:32.1]} 13... Bd7 {[%clk 0:02:35.8]}
14. Nxb7 {[%clk 0:02:30.1]} 14... Bb5 {[%clk 0:02:34.7]} 15. Re1 {[%clk
0:02:23.4]} 15... Nd4 {[%clk 0:02:30.1]} 16. Rxe7 {[%clk 0:02:14.9]} 16... Bf8
{[%clk 0:02:27.7]} 17. Re5 {[%clk 0:01:52.5]} 17... Bd3 {[%clk 0:02:24.7]} 18.
Rd5 {[%clk 0:01:43.9]} 18... Rb8 {[%clk 0:02:23.8]} 19. Rxd4 {[%clk 0:01:43.9]}
19... Bf5 {[%clk 0:02:23]} 20. Bf4 {[%clk 0:01:41]} 20... Rxb7 {[%clk
0:02:21.1]} 21. Bxb7 {[%clk 0:01:41]} 21... Bc2 {[%clk 0:02:17.8]} 22. Rd8
{[%clk 0:01:41.1]} 22... Kg7 {[%clk 0:02:14.9]} 23. Be5+ {[%clk 0:01:38.9]}
23... Kg8 {[%clk 0:02:11.7]} 24. Rc1 {[%clk 0:01:35.7]} 24... Bf5 {[%clk
0:02:07.3]} 25. Bc8 {[%clk 0:01:30.3]} 25... Be4+ {[%clk 0:02:03.9]} 26. Kg1
{[%clk 0:01:24]} 26... a5 {[%clk 0:01:56.2]} 27. Bh3 {[%clk 0:01:24.4]} 27... a4
{[%clk 0:01:48.7]} 28. Rcc8 {[%clk 0:01:24.8]} 28... a3 {[%clk 0:01:46.3]} 29.
Rxf8# {[%clk 0:01:25.3]} 1

[Event "Open Nuevo Centro. Jornada 2"]
[Site "Chess.com"]
[Date "2020.06.26"]
[Round "1"]
[White "Grigorev, Artur "]
[Black "Castellano López, Javier"]
[Result "0-1"]
[WhiteElo "854"]
[BlackElo "1779"]
[TimeControl "180+2"]
[EndTime "10:35:38 PDT"]
[Termination "Victoria de its_xavi_official por tiempo"]

1. e4 {[%clk 0:03:00.3]} 1... c6 {[%clk 0:02:58.5]} 2. Nc3 {[%clk 0:02:54.7]}
2... d5 {[%clk 0:02:59.9]} 3. e5 {[%clk 0:02:52.8]} 3... Bf5 {[%clk 0:02:58.4]}
4. d4 {[%clk 0:02:50.6]} 4... e6 {[%clk 0:02:57.3]} 5. Bd3 {[%clk 0:02:31.9]}
5... Bxd3 {[%clk 0:02:55.5]} 6. Qxd3 {[%clk 0:02:22.7]} 6... c5 {[%clk
0:02:51.7]} 7. dxc5 {[%clk 0:02:13.3]} 7... Nc6 {[%clk 0:02:51.1]} 8. Be3 {[%clk
0:02:10.3]} 8... Nxe5 {[%clk 0:02:49.8]} 9. Qb5+ {[%clk 0:02:00.8]} 9... Qd7
{[%clk 0:02:49.2]} 10. Qxd7+ {[%clk 0:01:50.4]} 10... Nxd7 {[%clk 0:02:51.1]}
11. Nf3 {[%clk 0:01:37.1]} 11... Bxc5 {[%clk 0:02:44.6]} 12. Bxc5 {[%clk
0:01:36.2]} 12... Nxc5 {[%clk 0:02:46.5]} 13. O-O-O {[%clk 0:01:21.6]} 13... Nf6
{[%clk 0:02:42]} 14. Nb5 {[%clk 0:01:11.4]} 14... O-O {[%clk 0:02:39.3]} 15.
Rhe1 {[%clk 0:00:37.6]} 15... a6 {[%clk 0:02:30.9]} 16. Nd6 {[%clk 0:00:27.2]}
16... b5 {[%clk 0:02:28.2]} 17. Ne5 {[%clk 0:00:19.8]} 17... Nce4 {[%clk
0:02:26.4]} 18. Nxe4 {[%clk 0:00:19.4]} 18... Nxe4 {[%clk 0:02:28.3]} 19. Nd7
{[%clk 0:00:18.2]} 19... Rfd8 {[%clk 0:02:28.4]} 20. Nb6 {[%clk 0:00:17.8]}
20... Rab8 {[%clk 0:02:28.8]} 21. Nxd5 {[%clk 0:00:04.2]} 21... exd5 {[%clk
0:02:27.7]} 0

[Event "Open Nuevo Centro. Jornada 2"]
[Site "Chess.com"]
[Date "2020.06.26"]
[Round "1"]
[White "Hernández Tomás, Efrén"]
[Black "Montesinos Diaz, Luis"]
[Result "0-1"]
[WhiteElo "1037"]
[BlackElo "1926"]
[TimeControl "180+2"]
[EndTime "10:35:43 PDT"]
[Termination "Victoria de Gwiso_06 por abandono"]

1. e4 {[%clk 0:03:00.7]} 1... c6 {[%clk 0:02:58.8]} 2. Nf3 {[%clk 0:03:01.1]}
2... d5 {[%clk 0:02:54.4]} 3. exd5 {[%clk 0:03:00.8]} 3... cxd5 {[%clk 0:02:38]}
4. Be2 {[%clk 0:02:58.9]} 4... Nc6 {[%clk 0:02:38.5]} 5. O-O {[%clk 0:02:57.2]}
5... Bf5 {[%clk 0:02:39.7]} 6. Nc3 {[%clk 0:02:55.8]} 6... e6 {[%clk 0:02:40.9]}
7. d3 {[%clk 0:02:56.1]} 7... a6 {[%clk 0:02:41.8]} 8. a3 {[%clk 0:02:54.7]}
8... Nf6 {[%clk 0:02:42.5]} 9. Bf4 {[%clk 0:02:54.4]} 9... Nh5 {[%clk
0:02:39.3]} 10. Bg5 {[%clk 0:02:46.8]} 10... Qc7 {[%clk 0:02:36]} 11. Qd2 {[%clk
0:02:33.9]} 11... Bd6 {[%clk 0:02:33.9]} 12. Ne5 {[%clk 0:02:15.5]} 12... Bxe5
{[%clk 0:02:17.1]} 13. Bxh5 {[%clk 0:02:13.9]} 13... O-O {[%clk 0:02:17.1]} 14.
Qe3 {[%clk 0:02:01.9]} 14... d4 {[%clk 0:02:11.8]} 15. Nd5 {[%clk 0:01:42.7]}
15... dxe3 {[%clk 0:02:06.2]} 16. Nxc7 {[%clk 0:01:41.9]} 16... exf2+ {[%clk
0:02:07.3]} 17. Rxf2 {[%clk 0:01:40]} 17... Bxc7 {[%clk 0:02:08.7]} 18. g4
{[%clk 0:01:34]} 18... Bg6 {[%clk 0:02:08.8]} 19. Bxg6 {[%clk 0:01:34.5]} 19...
hxg6 {[%clk 0:02:10.7]} 20. Rf3 {[%clk 0:01:32.8]} 20... Ne5 {[%clk 0:02:10.8]}
21. Rh3 {[%clk 0:01:31.1]} 21... Nxg4 {[%clk 0:02:08.9]} 22. Rh4 {[%clk
0:01:29]} 22... Nf6 {[%clk 0:02:04]} 23. Re1 {[%clk 0:01:23.7]} 23... Rac8
{[%clk 0:01:59.2]} 24. Re3 {[%clk 0:01:24.6]} 24... Nh5 {[%clk 0:02:00.1]} 25.
Reh3 {[%clk 0:01:16.7]} 25... Bb6+ {[%clk 0:02:00]} 26. Kf1 {[%clk 0:01:07.5]}
26... Rxc2 {[%clk 0:02:00.6]} 27. b4 {[%clk 0:01:05.6]} 27... Rfc8 {[%clk
0:01:59.4]} 28. Ke1 {[%clk 0:00:57.5]} 28... Bf2+ {[%clk 0:01:58.4]} 0

[Event "Open Nuevo Centro. Jornada 2"]
[Site "Chess.com"]
[Date "2020.06.26"]
[Round "1"]
[White "Gracia Calvo, Andrés"]
[Black "Gálvez Torres, Antonio"]
[Result "1-0"]
[WhiteElo "1822"]
[BlackElo "883"]
[TimeControl "180+2"]
[EndTime "10:35:45 PDT"]
[Termination "Victoria de andresjaque21 por abandono"]

1. d4 {[%clk 0:03:00]} 1... d5 {[%clk 0:02:59.6]} 2. Nf3 {[%clk 0:03:00.8]} 2...
Nc6 {[%clk 0:02:59.1]} 3. Bf4 {[%clk 0:03:02.1]} 3... Nf6 {[%clk 0:02:58.2]} 4.
e3 {[%clk 0:03:03.4]} 4... Bf5 {[%clk 0:02:58.5]} 5. Bd3 {[%clk 0:03:04.5]} 5...
e6 {[%clk 0:02:58.9]} 6. Nbd2 {[%clk 0:03:05.1]} 6... Bxd3 {[%clk 0:02:59]} 7.
cxd3 {[%clk 0:03:05.8]} 7... Bb4 {[%clk 0:02:59.3]} 8. O-O {[%clk 0:03:05.9]}
8... O-O {[%clk 0:02:58.1]} 9. Ne5 {[%clk 0:03:06.5]} 9... Bd6 {[%clk
0:02:52.4]} 10. a3 {[%clk 0:03:01.9]} 10... Bxe5 {[%clk 0:02:45.6]} 11. dxe5
{[%clk 0:03:01.6]} 11... Nd7 {[%clk 0:02:45.7]} 12. d4 {[%clk 0:03:02.3]} 12...
Qh4 {[%clk 0:02:41]} 13. Bg3 {[%clk 0:03:02]} 13... Qe7 {[%clk 0:02:38.4]} 14.
Rc1 {[%clk 0:02:59.8]} 14... Rac8 {[%clk 0:02:37.1]} 15. b4 {[%clk 0:03:00]}
15... a6 {[%clk 0:02:35]} 16. Nf3 {[%clk 0:02:53.5]} 16... b5 {[%clk 0:02:34.7]}
17. Rxc6 {[%clk 0:02:51.8]} 17... Nb8 {[%clk 0:02:30]} 18. Rc2 {[%clk
0:02:50.6]} 18... f5 {[%clk 0:02:25]} 19. exf6 {[%clk 0:02:47.9]} 19... Rxf6
{[%clk 0:02:18.8]} 20. Ne5 {[%clk 0:02:46.3]} 20... c6 {[%clk 0:02:10.5]} 21.
Bh4 {[%clk 0:02:45.9]} 21... Qf8 {[%clk 0:01:51.4]} 22. Bxf6 {[%clk 0:02:44.7]}
22... Qxf6 {[%clk 0:01:52]} 23. f4 {[%clk 0:02:42.8]} 23... Qh4 {[%clk
0:01:50.8]} 24. Qg4 {[%clk 0:02:39.3]} 24... Qe7 {[%clk 0:01:47.3]} 25. Rfc1
{[%clk 0:02:38.7]} 25... Qe8 {[%clk 0:01:38.5]} 26. f5 {[%clk 0:02:22.7]} 26...
h5 {[%clk 0:01:36.7]} 27. Qg6 {[%clk 0:02:20.1]} 27... Qxg6 {[%clk 0:01:29.9]}
28. fxg6 {[%clk 0:02:17.7]} 28... Kf8 {[%clk 0:01:29.7]} 29. Nxc6 {[%clk
0:02:17.6]} 29... Nxc6 {[%clk 0:01:29.2]} 30. Rxc6 {[%clk 0:02:18]} 30... Ra8
{[%clk 0:01:24.4]} 31. Rxe6 {[%clk 0:02:16.9]} 31... Re8 {[%clk 0:01:21.5]} 32.
Rxe8+ {[%clk 0:02:17]} 32... Kxe8 {[%clk 0:01:23.4]} 33. Rc6 {[%clk 0:02:17.9]}
33... Ke7 {[%clk 0:01:25.3]} 34. Rxa6 {[%clk 0:02:18.7]} 34... h4 {[%clk
0:01:24.7]} 35. Rb6 {[%clk 0:02:18.8]} 35... Kd7 {[%clk 0:01:24.9]} 36. Rxb5
{[%clk 0:02:19.6]} 36... Kc6 {[%clk 0:01:26.8]} 37. Rc5+ {[%clk 0:02:20.2]}
37... Kd6 {[%clk 0:01:26.3]} 38. b5 {[%clk 0:02:20.7]} 1

[Event "Open Nuevo Centro. Jornada 2"]
[Site "Chess.com"]
[Date "2020.06.26"]
[Round "1"]
[White "Morata Briones, Carlos"]
[Black "Zamora Soler, Raul"]
[Result "0-1"]
[WhiteElo "771"]
[BlackElo "1770"]
[TimeControl "180+2"]
[EndTime "10:35:45 PDT"]
[Termination "Victoria de rzamora80 por jaque mate"]

1. e4 {[%clk 0:03:01.3]} 1... c5 {[%clk 0:02:59.1]} 2. Qh5 {[%clk 0:02:58.9]}
2... e6 {[%clk 0:02:57.9]} 3. Bc4 {[%clk 0:02:58.8]} 3... Nf6 {[%clk 0:02:58.3]}
4. Qf3 {[%clk 0:02:57.4]} 4... Nc6 {[%clk 0:02:59.1]} 5. Qe3 {[%clk 0:02:49.1]}
5... d5 {[%clk 0:02:48.7]} 6. e5 {[%clk 0:02:45.8]} 6... dxc4 {[%clk 0:02:42.8]}
7. exf6 {[%clk 0:02:45.5]} 7... Qxf6 {[%clk 0:02:42.2]} 8. Nc3 {[%clk
0:02:43.8]} 8... a6 {[%clk 0:02:40.1]} 9. Nf3 {[%clk 0:02:43.1]} 9... Nd4 {[%clk
0:02:36.8]} 10. Nxd4 {[%clk 0:02:41.3]} 10... cxd4 {[%clk 0:02:37.3]} 11. Qf3
{[%clk 0:02:39.5]} 11... dxc3 {[%clk 0:02:36.9]} 12. Qxf6 {[%clk 0:02:37.9]}
12... cxd2+ {[%clk 0:02:36]} 13. Bxd2 {[%clk 0:02:33.9]} 13... gxf6 {[%clk
0:02:36.4]} 14. O-O {[%clk 0:02:30.7]} 14... Bd7 {[%clk 0:02:36.7]} 15. Rae1
{[%clk 0:02:27.2]} 15... Be7 {[%clk 0:02:29.4]} 16. h3 {[%clk 0:02:24.7]} 16...
O-O-O {[%clk 0:02:20.5]} 17. Re2 {[%clk 0:02:19.4]} 17... c3 {[%clk 0:02:16.8]}
18. Bxc3 {[%clk 0:02:18.9]} 18... Bb5 {[%clk 0:02:17.5]} 19. Rxe6 {[%clk
0:02:06.3]} 19... fxe6 {[%clk 0:02:15.8]} 20. Re1 {[%clk 0:02:02.9]} 20... e5
{[%clk 0:02:13]} 21. f3 {[%clk 0:01:56.9]} 21... Bc5+ {[%clk 0:02:13]} 22. Kh2
{[%clk 0:01:54.4]} 22... Rhe8 {[%clk 0:02:12.8]} 23. b4 {[%clk 0:01:52.1]} 23...
Bd4 {[%clk 0:02:05]} 24. Bd2 {[%clk 0:01:42.9]} 24... Bg1+ {[%clk 0:02:04.9]}
25. Kxg1 {[%clk 0:01:36]} 25... Rxd2 {[%clk 0:02:05.1]} 26. Kh2 {[%clk
0:01:34.7]} 26... Rxc2 {[%clk 0:02:01.5]} 27. Ra1 {[%clk 0:01:32.8]} 27... f5
{[%clk 0:01:51.4]} 28. Kg3 {[%clk 0:01:23.6]} 28... Rg8+ {[%clk 0:01:48.1]} 29.
Kh2 {[%clk 0:01:23]} 29... Rgxg2+ {[%clk 0:01:45]} 30. Kh1 {[%clk 0:01:22.8]}
30... Rh2+ {[%clk 0:01:45.9]} 31. Kg1 {[%clk 0:01:22.9]} 31... Rcg2# {[%clk
0:01:47.1]} 0

[Event "Open Nuevo Centro. Jornada 2"]
[Site "Chess.com"]
[Date "2020.06.26"]
[Round "1"]
[White "Colomer Martinez, Isabel"]
[Black "Segarra Martinez, Axel"]
[Result "0-1"]
[WhiteElo "1197"]
[BlackElo "2163"]
[TimeControl "180+2"]
[EndTime "10:35:58 PDT"]
[Termination "Victoria de Alejandrosky por jaque mate"]

1. e4 {[%clk 0:03:00.1]} 1... e6 {[%clk 0:02:54.9]} 2. Nc3 {[%clk 0:02:56.8]}
2... d5 {[%clk 0:02:55.4]} 3. e5 {[%clk 0:02:53.7]} 3... c5 {[%clk 0:02:55.4]}
4. d4 {[%clk 0:02:26.4]} 4... Nc6 {[%clk 0:02:55.3]} 5. Nf3 {[%clk 0:02:19.9]}
5... cxd4 {[%clk 0:02:55.5]} 6. Nxd4 {[%clk 0:02:20]} 6... Nxe5 {[%clk
0:02:56.3]} 7. Bf4 {[%clk 0:02:05.3]} 7... Ng6 {[%clk 0:02:50]} 8. Bg3 {[%clk
0:02:04.5]} 8... a6 {[%clk 0:02:50.6]} 9. Be2 {[%clk 0:02:01.3]} 9... Nf6 {[%clk
0:02:51]} 10. O-O {[%clk 0:02:00.1]} 10... Bd6 {[%clk 0:02:51]} 11. Bxd6 {[%clk
0:01:52.3]} 11... Qxd6 {[%clk 0:02:52.9]} 12. a3 {[%clk 0:01:31.9]} 12... O-O
{[%clk 0:02:52.5]} 13. Nb1 {[%clk 0:01:22.2]} 13... e5 {[%clk 0:02:52.9]} 14.
Nf3 {[%clk 0:01:09.7]} 14... Nf4 {[%clk 0:02:53.6]} 15. h3 {[%clk 0:00:55.3]}
15... Bd7 {[%clk 0:02:50.9]} 16. Nc3 {[%clk 0:00:52.6]} 16... d4 {[%clk
0:02:44]} 17. Nb1 {[%clk 0:00:47.8]} 17... Nxe2+ {[%clk 0:02:37.3]} 18. Qxe2
{[%clk 0:00:46.5]} 18... e4 {[%clk 0:02:32.4]} 19. Nh2 {[%clk 0:00:37.3]} 19...
Bb5 {[%clk 0:02:32.7]} 20. Qe1 {[%clk 0:00:26.5]} 20... Rac8 {[%clk 0:02:28.2]}
21. Qd1 {[%clk 0:00:16.2]} 21... Bxf1 {[%clk 0:02:24.8]} 22. Kxf1 {[%clk
0:00:15.8]} 22... Qxh2 {[%clk 0:02:23.1]} 23. Qxd4 {[%clk 0:00:10.3]} 23... Rfd8
{[%clk 0:02:20.2]} 24. Qe3 {[%clk 0:00:06.8]} 24... Qh1+ {[%clk 0:02:19.9]} 25.
Ke2 {[%clk 0:00:06.2]} 25... Qd1# {[%clk 0:02:21.8]} 0

[Event "Open Nuevo Centro. Jornada 2"]
[Site "Chess.com"]
[Date "2020.06.26"]
[Round "1"]
[White "Giaccio González, Alfredo Gustavo"]
[Black "Beneyto de Ramon, Guillermo"]
[Result "1-0"]
[WhiteElo "2382"]
[BlackElo "1510"]
[TimeControl "180+2"]
[EndTime "10:36:08 PDT"]
[Termination "Victoria de AGG2020 por abandono"]

1. e4 {[%clk 0:03:01.9]} 1... Nf6 {[%clk 0:03:00.6]} 2. e5 {[%clk 0:03:02.4]}
2... Nd5 {[%clk 0:03:01.5]} 3. d4 {[%clk 0:03:03.8]} 3... d6 {[%clk 0:03:02.7]}
4. c4 {[%clk 0:03:04.9]} 4... Nb6 {[%clk 0:03:04.5]} 5. exd6 {[%clk 0:03:06.8]}
5... exd6 {[%clk 0:03:05.4]} 6. Nc3 {[%clk 0:03:07.9]} 6... Nc6 {[%clk
0:03:03.8]} 7. d5 {[%clk 0:03:03.8]} 7... Ne5 {[%clk 0:03:04.7]} 8. f4 {[%clk
0:03:05.3]} 8... Nexc4 {[%clk 0:03:05.3]} 9. Bxc4 {[%clk 0:03:05]} 9... Nxc4
{[%clk 0:03:05.8]} 10. Qa4+ {[%clk 0:03:05.9]} 10... Bd7 {[%clk 0:02:58.3]} 11.
Qxc4 {[%clk 0:03:06.7]} 11... Be7 {[%clk 0:02:57.6]} 12. Nf3 {[%clk 0:03:06.8]}
12... Bh4+ {[%clk 0:02:53.3]} 13. g3 {[%clk 0:03:06.6]} 13... Be7 {[%clk
0:02:52.8]} 14. Be3 {[%clk 0:03:05.1]} 14... O-O {[%clk 0:02:51.4]} 15. O-O
{[%clk 0:03:05.2]} 15... Bh3 {[%clk 0:02:48.8]} 16. Rfe1 {[%clk 0:03:03.5]}
16... Bg4 {[%clk 0:02:44.3]} 17. Qf1 {[%clk 0:02:57.3]} 17... Bf6 {[%clk
0:02:41.8]} 18. Bd4 {[%clk 0:02:54.8]} 18... Bxd4+ {[%clk 0:02:17.3]} 19. Nxd4
{[%clk 0:02:55.1]} 19... Qf6 {[%clk 0:02:15.8]} 20. Qf2 {[%clk 0:02:55.3]} 20...
Rfe8 {[%clk 0:02:14.8]} 21. Ndb5 {[%clk 0:02:45.5]} 21... Re7 {[%clk 0:02:00.1]}
22. Rxe7 {[%clk 0:02:44.4]} 22... Qxe7 {[%clk 0:02:01.2]} 23. Re1 {[%clk
0:02:44.5]} 23... Qd7 {[%clk 0:02:00.7]} 24. Qe3 {[%clk 0:02:33.6]} 24... h6
{[%clk 0:01:49.3]} 25. Nd4 {[%clk 0:02:26.5]} 25... Kf8 {[%clk 0:01:46.7]} 26.
Qe4 {[%clk 0:02:25.4]} 26... f5 {[%clk 0:01:39.4]} 27. Qe6 {[%clk 0:02:17.8]}
27... Qxe6 {[%clk 0:01:19.8]} 28. Nxe6+ {[%clk 0:02:16.6]} 28... Kf7 {[%clk
0:01:21.1]} 29. Nxc7 {[%clk 0:02:17.5]} 29... Rd8 {[%clk 0:01:16.5]} 30. N7b5
{[%clk 0:02:12.1]} 30... a6 {[%clk 0:01:17.4]} 31. Nd4 {[%clk 0:02:13.4]} 31...
Re8 {[%clk 0:01:14.9]} 32. Rxe8 {[%clk 0:02:11.8]} 32... Kxe8 {[%clk 0:01:16.8]}
33. Kg2 {[%clk 0:02:12.4]} 33... Kd7 {[%clk 0:01:13.5]} 34. h3 {[%clk
0:02:12.8]} 34... Bh5 {[%clk 0:01:13.3]} 35. Nxf5 {[%clk 0:02:13.7]} 35... g5
{[%clk 0:01:11.8]} 36. Nxh6 {[%clk 0:02:13.2]} 36... gxf4 {[%clk 0:01:12.2]} 37.
g4 {[%clk 0:02:14]} 37... Bg6 {[%clk 0:01:10.1]} 38. Kf3 {[%clk 0:02:14.3]} 1

[Event "Open Nuevo Centro. Jornada 2"]
[Site "Chess.com"]
[Date "2020.06.26"]
[Round "1"]
[White "Aguado, Pablo Luis"]
[Black "Sverdlik Roldán, Elías"]
[Result "1-0"]
[WhiteElo "1686"]
[BlackElo "399"]
[TimeControl "180+2"]
[EndTime "10:36:12 PDT"]
[Termination "Victoria de PLAD_2006 por jaque mate"]

1. d4 {[%clk 0:02:58.8]} 1... d5 {[%clk 0:03:00.4]} 2. c4 {[%clk 0:02:59.4]}
2... e6 {[%clk 0:02:58]} 3. Nc3 {[%clk 0:03:00.2]} 3... Nf6 {[%clk 0:02:54.7]}
4. cxd5 {[%clk 0:03:00.1]} 4... exd5 {[%clk 0:02:55.3]} 5. Bg5 {[%clk
0:03:00.7]} 5... Be7 {[%clk 0:02:55.5]} 6. e3 {[%clk 0:03:00.6]} 6... Nc6 {[%clk
0:02:54.2]} 7. Nf3 {[%clk 0:02:59.2]} 7... Bd7 {[%clk 0:02:54.4]} 8. Bd3 {[%clk
0:02:59.4]} 8... h6 {[%clk 0:02:52.9]} 9. Bh4 {[%clk 0:02:58.8]} 9... Bg4 {[%clk
0:02:15.3]} 10. a3 {[%clk 0:02:50.7]} 10... Bxf3 {[%clk 0:02:14.2]} 11. Qxf3
{[%clk 0:02:50]} 11... Qd7 {[%clk 0:01:52.4]} 12. Bxf6 {[%clk 0:02:47.4]} 12...
Bxf6 {[%clk 0:01:38.9]} 13. Qxd5 {[%clk 0:02:46.4]} 13... Qxd5 {[%clk
0:00:43.5]} 14. Nxd5 {[%clk 0:02:48.3]} 14... O-O-O {[%clk 0:00:37.7]} 15. Nc3
{[%clk 0:02:43.6]} 15... Rhe8 {[%clk 0:00:35.9]} 16. O-O {[%clk 0:02:42.4]}
16... Be7 {[%clk 0:00:31.2]} 17. Rac1 {[%clk 0:02:35.7]} 17... f5 {[%clk
0:00:06.2]} 18. Bxf5+ {[%clk 0:02:33.8]} 18... Kb8 {[%clk 0:00:02.9]} 19. b4
{[%clk 0:02:34.5]} 19... Rd5 {[%clk 0:00:02.4]} 20. Nxd5 {[%clk 0:02:34.2]}
20... Ne5 {[%clk 0:00:02.4]} 21. dxe5 {[%clk 0:02:34.3]} 21... Bc5 {[%clk
0:00:03.3]} 22. Rxc5 {[%clk 0:02:34]} 22... Re6 {[%clk 0:00:04.6]} 23. Bxe6
{[%clk 0:02:34.6]} 23... c6 {[%clk 0:00:05.5]} 24. Ne7 {[%clk 0:02:34.7]} 24...
b5 {[%clk 0:00:06.5]} 25. Nxc6+ {[%clk 0:02:34.8]} 25... Ka8 {[%clk 0:00:05.6]}
26. Na5 {[%clk 0:02:34.5]} 26... a6 {[%clk 0:00:06.3]} 27. Rc8+ {[%clk
0:02:34.7]} 27... Ka7 {[%clk 0:00:07.3]} 28. Rc7+ {[%clk 0:02:36]} 28... Ka8
{[%clk 0:00:07.5]} 29. Bd5+ {[%clk 0:02:35.8]} 29... Kb8 {[%clk 0:00:08.2]} 30.
Rb7+ {[%clk 0:02:36.3]} 30... Ka8 {[%clk 0:00:08.5]} 31. e6 {[%clk 0:02:32]}
31... g5 {[%clk 0:00:07.7]} 32. e7 {[%clk 0:02:33.4]} 32... g4 {[%clk
0:00:08.1]} 33. e8=R# {[%clk 0:02:33.7]} 1

[Event "Open Nuevo Centro. Jornada 2"]
[Site "Chess.com"]
[Date "2020.06.26"]
[Round "1"]
[White "Martínez Cuenca, Jose Andrés"]
[Black "Lopez Mateo, Juan Carlos"]
[Result "0-1"]
[WhiteElo "1072"]
[BlackElo "1989"]
[TimeControl "180+2"]
[EndTime "10:36:27 PDT"]
[Termination "Victoria de Tarantantinov por jaque mate"]

1. e4 {[%clk 0:02:58.2]} 1... c5 {[%clk 0:03:00.4]} 2. Nf3 {[%clk 0:02:57.2]}
2... e6 {[%clk 0:03:01.4]} 3. Nc3 {[%clk 0:02:56.5]} 3... a6 {[%clk 0:03:01.7]}
4. Bc4 {[%clk 0:02:52.3]} 4... b5 {[%clk 0:02:59.8]} 5. Bd3 {[%clk 0:02:49]}
5... Bb7 {[%clk 0:02:52]} 6. Be2 {[%clk 0:02:46]} 6... b4 {[%clk 0:02:46.2]} 7.
Nb1 {[%clk 0:02:45.1]} 7... Bxe4 {[%clk 0:02:47.1]} 8. d3 {[%clk 0:02:46.1]}
8... Bb7 {[%clk 0:02:45.7]} 9. Be3 {[%clk 0:02:43.3]} 9... d5 {[%clk 0:02:38.1]}
10. Ne5 {[%clk 0:02:41.5]} 10... Nf6 {[%clk 0:02:34.8]} 11. Bg5 {[%clk
0:02:39.6]} 11... Be7 {[%clk 0:02:35]} 12. Nd2 {[%clk 0:02:35]} 12... O-O {[%clk
0:02:19.2]} 13. O-O {[%clk 0:02:28.8]} 13... Qc7 {[%clk 0:02:01.1]} 14. f4
{[%clk 0:02:22.6]} 14... Bd6 {[%clk 0:01:49]} 15. Ndf3 {[%clk 0:02:21.3]} 15...
Ne8 {[%clk 0:01:37.2]} 16. c3 {[%clk 0:02:08.3]} 16... f6 {[%clk 0:01:36.9]} 17.
Bxf6 {[%clk 0:02:04.8]} 17... gxf6 {[%clk 0:01:29.8]} 18. Ng4 {[%clk 0:02:06]}
18... Bxf4 {[%clk 0:01:27.1]} 19. g3 {[%clk 0:02:06]} 19... Bd6 {[%clk
0:01:20.8]} 20. Nh4 {[%clk 0:01:58.4]} 20... f5 {[%clk 0:01:15.5]} 21. Ne3
{[%clk 0:01:55.2]} 21... f4 {[%clk 0:01:05]} 22. gxf4 {[%clk 0:01:53.9]} 22...
Bxf4 {[%clk 0:00:57.5]} 23. Ng4 {[%clk 0:01:53.8]} 23... h5 {[%clk 0:00:50.6]}
24. Nf2 {[%clk 0:01:49.9]} 24... Bxh2+ {[%clk 0:00:47]} 25. Kg2 {[%clk
0:01:48.5]} 25... Qg3+ {[%clk 0:00:42.9]} 26. Kh1 {[%clk 0:01:42.9]} 26... Qxh4
{[%clk 0:00:43.7]} 27. Bxh5 {[%clk 0:01:37.8]} 27... Bg3+ {[%clk 0:00:41.6]} 28.
Kg2 {[%clk 0:01:31.2]} 28... Qh2# {[%clk 0:00:41.8]} 0

[Event "Open Nuevo Centro. Jornada 2"]
[Site "Chess.com"]
[Date "2020.06.26"]
[Round "1"]
[White "Cinà Asensio, Luca "]
[Black "Birnoveanu, Petru"]
[Result "0-1"]
[WhiteElo "499"]
[BlackElo "1697"]
[TimeControl "180+2"]
[EndTime "10:36:29 PDT"]
[Termination "Victoria de piculet por jaque mate"]

1. e4 {[%clk 0:02:45.3]} 1... Nc6 {[%clk 0:02:59.5]} 2. Bc4 {[%clk 0:02:44.2]}
2... e5 {[%clk 0:02:59.3]} 3. Nf3 {[%clk 0:02:44]} 3... Bc5 {[%clk 0:02:58.4]}
4. d3 {[%clk 0:02:39.7]} 4... d6 {[%clk 0:02:58.8]} 5. Ng5 {[%clk 0:02:39.1]}
5... Nh6 {[%clk 0:02:57.9]} 6. Nf3 {[%clk 0:02:38.3]} 6... Qf6 {[%clk
0:02:56.5]} 7. O-O {[%clk 0:02:37.8]} 7... Bg4 {[%clk 0:02:56.1]} 8. Bg5 {[%clk
0:02:33]} 8... Qg6 {[%clk 0:02:47]} 9. Bxh6 {[%clk 0:02:21.1]} 9... Qxh6 {[%clk
0:02:47.4]} 10. h3 {[%clk 0:02:17.7]} 10... Bxf3 {[%clk 0:02:39.6]} 11. Qxf3
{[%clk 0:02:16.8]} 11... O-O {[%clk 0:02:39.7]} 12. c3 {[%clk 0:02:06.5]} 12...
a6 {[%clk 0:02:38.5]} 13. Nd2 {[%clk 0:02:01.8]} 13... Ne7 {[%clk 0:02:28]} 14.
Nb3 {[%clk 0:01:54.9]} 14... Ba7 {[%clk 0:02:20.5]} 15. Rad1 {[%clk 0:01:52.2]}
15... b5 {[%clk 0:02:06.6]} 16. Bd5 {[%clk 0:01:49.1]} 16... c6 {[%clk
0:02:07.5]} 17. d4 {[%clk 0:01:37.3]} 17... cxd5 {[%clk 0:02:07.4]} 18. exd5
{[%clk 0:01:34.6]} 18... exd4 {[%clk 0:02:02.9]} 19. cxd4 {[%clk 0:01:34.7]}
19... Qg5 {[%clk 0:01:47.1]} 20. g4 {[%clk 0:01:33.2]} 20... Qxd5 {[%clk
0:01:45.4]} 21. Qf4 {[%clk 0:01:30.9]} 21... Ng6 {[%clk 0:01:43.7]} 22. Qd2
{[%clk 0:01:29.5]} 22... Rac8 {[%clk 0:01:30.7]} 23. Rc1 {[%clk 0:01:26.9]}
23... h6 {[%clk 0:01:28.5]} 24. Rxc8 {[%clk 0:01:26.3]} 24... Rxc8 {[%clk
0:01:28.3]} 25. Rc1 {[%clk 0:01:22.8]} 25... Rc4 {[%clk 0:01:26.9]} 26. Qd3
{[%clk 0:01:13.5]} 26... Nf4 {[%clk 0:01:15.9]} 27. Qf1 {[%clk 0:01:12.3]} 27...
Rxc1 {[%clk 0:01:10.8]} 28. Qxc1 {[%clk 0:01:11.1]} 28... Ne2+ {[%clk
0:01:09.5]} 29. Kf1 {[%clk 0:01:09.6]} 29... Nxc1 {[%clk 0:01:10]} 30. Nxc1
{[%clk 0:01:11.5]} 30... Qxd4 {[%clk 0:01:10.4]} 31. Ne2 {[%clk 0:01:11.5]}
31... Qxf2# {[%clk 0:01:10.1]} 0